bitfinex-derivatives/quotes_SOLF0:USTF0_20260207
["timestamp","ask_amount","ask_price","bid_price","bid_amount"]
[1770501572123,9.01689267,88.14,88.121,71.6646515]
[1770501572328,65.91252557,88.159,88.121,71.6646515]
[1770501572529,9.01202023,88.158,88.121,71.6646515]
[1770501572728,9.01202023,88.157,88.121,71.6646515]
[1770501572928,9.01202023,88.156,88.121,71.6646515]
[1770501573133,9.01202023,88.155,88.121,71.6646515]
[1770501573330,9.01202023,88.154,88.121,71.6646515]
[1770501573630,9.01202023,88.153,88.121,71.6646515]
[1770501573931,9.01202023,88.152,88.121,71.6646515]
[1770501574130,9.01202023,88.151,88.121,71.6646515]
[1770501574325,9.01202023,88.15,88.121,71.6646515]
[1770501574520,10.2168,88.15,88.121,71.6646515]
[1770501575226,65.91252557,88.159,88.121,71.6646515]
[1770501575530,9.00449616,88.158,88.121,71.6646515]
[1770501575731,9.00449616,88.157,88.121,71.6646515]
[1770501575933,65.91252557,88.159,88.121,71.6646515]
[1770501575934,9.00449616,88.156,88.121,71.6646515]
[1770501576224,9.00449616,88.155,88.121,71.6646515]
[1770501576430,9.00449616,88.154,88.121,71.6646515]
[1770501576632,65.91252557,88.159,88.121,71.6646515]
[1770501576832,9.00285063,88.158,88.121,71.6646515]
[1770501577033,9.00285063,88.157,88.121,71.6646515]
[1770501577331,9.00285063,88.156,88.121,71.6646515]
[1770501577530,9.00285063,88.155,88.121,71.6646515]
[1770501577730,9.00285063,88.154,88.121,71.6646515]
[1770501577933,10.2162,88.155,88.121,71.6646515]
[1770501578133,9.00128892,88.154,88.121,71.6646515]
[1770501578431,9.00128892,88.153,88.121,71.6646515]
[1770501578640,80.76082875,88.152,88.11,75.17718781]
[1770501578826,71.75953983,88.15,88.11,75.17718781]
[1770501579632,10.2175,88.144,88.11,75.17718781]
[1770501579833,10.2175,88.144,88.11,71.43049379]
[1770501582137,71.75953983,88.139,88.09,3.74669402]
[1770501582439,80.76144804,88.138,88.09,3.74669402]
[1770501582734,9.00190821,88.137,88.09,3.74669402]
[1770501582930,9.00190821,88.136,88.09,3.74669402]
[1770501583136,9.00190821,88.135,88.09,3.74669402]
[1770501583338,9.00190821,88.134,88.09,3.74669402]
[1770501583538,9.00190821,88.133,88.09,3.74669402]
[1770501583733,10.2197,88.125,88.09,3.74669402]
[1770501584128,10.2197,88.125,88.091,71.43049379]
[1770501584735,71.75953983,88.138,88.091,71.43049379]
[1770501584934,9.01916229,88.137,88.091,71.43049379]
[1770501585141,9.01916229,88.136,88.091,71.43049379]
[1770501585339,9.01916229,88.135,88.091,71.43049379]
[1770501585531,9.01916229,88.134,88.091,71.43049379]
[1770501585734,9.01916229,88.133,88.091,71.43049379]
[1770501585941,9.01916229,88.132,88.091,71.43049379]
[1770501586138,9.01916229,88.131,88.091,71.43049379]
[1770501586340,9.01916229,88.13,88.091,71.43049379]
[1770501586540,71.75953983,88.138,88.091,71.43049379]
[1770501586741,9.0242083,88.137,88.091,71.43049379]
[1770501587037,71.75953983,88.138,88.091,71.43049379]
[1770501587038,9.0242083,88.136,88.091,71.43049379]
[1770501587243,9.0242083,88.135,88.091,71.43049379]
[1770501587438,9.0242083,88.134,88.091,71.43049379]
[1770501587642,9.0242083,88.133,88.091,71.43049379]
[1770501587942,9.0242083,88.132,88.091,71.43049379]
[1770501588144,9.02922854,88.131,88.091,71.43049379]
[1770501588346,71.75953983,88.138,88.091,71.43049379]
[1770501588545,9.03329436,88.137,88.091,71.43049379]
[1770501588845,9.03329436,88.136,88.091,71.43049379]
[1770501589148,9.03329436,88.135,88.091,71.43049379]
[1770501589337,9.03329436,88.134,88.091,71.43049379]
[1770501589534,9.03329436,88.133,88.091,71.43049379]
[1770501589738,9.03329436,88.132,88.091,71.43049379]
[1770501589944,9.03329436,88.131,88.091,71.43049379]
[1770501590148,9.03329436,88.13,88.091,71.43049379]
[1770501590447,71.75953983,88.138,88.091,71.43049379]
[1770501590646,9.04056443,88.137,88.091,71.43049379]
[1770501590939,9.04056443,88.136,88.091,71.43049379]
[1770501591134,9.04056443,88.135,88.091,71.43049379]
[1770501591338,9.04056443,88.134,88.091,71.43049379]
[1770501591538,9.04056443,88.133,88.091,71.43049379]
[1770501591745,9.04056443,88.132,88.091,71.43049379]
[1770501591941,9.04056443,88.131,88.091,71.43049379]
[1770501592142,9.04056443,88.13,88.091,71.43049379]
[1770501592446,9.04056443,88.129,88.091,71.43049379]
[1770501592647,71.75953983,88.138,88.091,71.43049379]
[1770501592850,80.79857727,88.137,88.091,71.43049379]
[1770501593048,9.03903744,88.136,88.091,71.43049379]
[1770501593346,9.03903744,88.135,88.091,71.43049379]
[1770501593549,9.03903744,88.134,88.091,71.43049379]
[1770501593744,9.03903744,88.133,88.091,71.43049379]
[1770501593948,71.75953983,88.137,88.091,71.43049379]
[1770501594248,9.03984174,88.136,88.091,71.43049379]
[1770501594446,9.03984174,88.135,88.091,71.43049379]
[1770501594649,9.03984174,88.134,88.091,71.43049379]
[1770501594849,9.03984174,88.133,88.091,71.43049379]
[1770501595050,71.75953983,88.137,88.091,71.43049379]
[1770501595250,9.03735146,88.136,88.091,71.43049379]
[1770501595451,9.03735146,88.135,88.091,71.43049379]
[1770501595750,9.03735146,88.134,88.091,71.43049379]
[1770501595947,71.75953983,88.127,88.076,71.43049379]
[1770501596149,9.03735146,88.126,88.1,3.74669402]
[1770501596348,71.75953983,88.135,88.091,71.43049379]
[1770501596551,71.75953983,88.158,88.121,71.43049379]
[1770501597049,71.75953983,88.169,88.131,71.43049379]
[1770501597252,71.75953983,88.181,88.131,71.43049379]
[1770501598754,71.75953983,88.179,88.131,71.43049379]
[1770501600255,71.75953983,88.179,88.15,3.74669402]
[1770501600559,71.75953983,88.192,88.15,71.43049379]
[1770501601257,71.75953983,88.192,88.15,75.17718781]
[1770501601560,71.75953983,88.179,88.127,71.43049379]
[1770501602556,71.75953983,88.165,88.115,71.43049379]
[1770501602759,71.75953983,88.159,88.115,71.43049379]
[1770501603757,81.97553983,88.157,88.115,71.43049379]
[1770501606857,72.33203528,88.169,88.13,73.2424154]
[1770501607051,72.33203528,88.18,88.13,73.2424154]
[1770501607248,72.33203528,88.169,88.12,3.74669402]
[1770501607453,72.33203528,88.149,88.106,69.49572138]
[1770501609360,8.98793553,88.148,88.106,69.49572138]
[1770501609658,8.98793553,88.147,88.106,69.49572138]
[1770501609850,8.98793553,88.146,88.106,69.49572138]
[1770501610052,8.98793553,88.145,88.106,69.49572138]
[1770501610255,8.98793553,88.144,88.106,69.49572138]
[1770501610461,8.98793553,88.143,88.106,69.49572138]
[1770501610655,8.98793553,88.142,88.106,69.49572138]
[1770501610849,72.33203528,88.149,88.106,69.49572138]
[1770501611049,8.9885159,88.148,88.106,69.49572138]
[1770501611256,8.9885159,88.147,88.106,69.49572138]
[1770501611558,8.9885159,88.146,88.106,69.49572138]
[1770501611758,8.9885159,88.145,88.106,69.49572138]
[1770501611960,8.9885159,88.144,88.106,69.49572138]
[1770501612160,8.9885159,88.143,88.106,69.49572138]
[1770501612460,8.9885159,88.142,88.106,69.49572138]
[1770501612660,72.33203528,88.149,88.106,69.49572138]
[1770501612860,8.98875254,88.148,88.106,69.49572138]
[1770501613057,8.98875254,88.147,88.106,69.49572138]
[1770501613258,8.98875254,88.146,88.106,69.49572138]
[1770501613460,8.98875254,88.145,88.106,69.49572138]
[1770501613758,8.98875254,88.144,88.106,69.49572138]
[1770501613951,72.33203528,88.149,88.106,69.49572138]
[1770501614153,8.99008802,88.148,88.106,69.49572138]
[1770501614353,8.99008802,88.147,88.106,69.49572138]
[1770501614553,8.99008802,88.146,88.106,69.49572138]
[1770501614750,8.99008802,88.145,88.106,69.49572138]
[1770501615054,8.99008802,88.144,88.106,69.49572138]
[1770501615251,72.33203528,88.149,88.106,69.49572138]
[1770501615454,8.9915824,88.148,88.106,69.49572138]
[1770501615760,8.9915824,88.147,88.106,69.49572138]
[1770501615957,8.9915824,88.146,88.106,69.49572138]
[1770501616157,8.9915824,88.145,88.106,69.49572138]
[1770501616458,72.33203528,88.149,88.106,69.49572138]
[1770501616658,8.99441894,88.148,88.106,69.49572138]
[1770501616860,8.99441894,88.147,88.106,69.49572138]
[1770501617162,8.99441894,88.146,88.106,69.49572138]
[1770501617364,8.99233838,88.145,88.106,69.49572138]
[1770501617564,8.99233838,88.144,88.106,69.49572138]
[1770501617764,72.33203528,88.149,88.106,69.49572138]
[1770501617960,8.9921722,88.148,88.106,69.49572138]
[1770501618161,8.9921722,88.147,88.106,69.49572138]
[1770501618368,8.9921722,88.147,88.041,20.4587]
[1770501618369,72.79032913,88.173,88.13,3.74669402]
[1770501618564,3.74669402,88.18,88.13,3.74669402]
[1770501618565,72.79032913,88.171,88.13,78.82298362]
[1770501618764,72.79032913,88.169,88.13,78.82298362]
[1770501619070,81.78381697,88.168,88.13,78.82298362]
[1770501619370,8.99348784,88.167,88.13,78.82298362]
[1770501619661,8.99348784,88.166,88.13,78.82298362]
[1770501619867,8.99348784,88.165,88.13,78.82298362]
[1770501620066,8.99348784,88.164,88.13,78.82298362]
[1770501620266,8.99348784,88.163,88.13,78.82298362]
[1770501620570,8.99348784,88.162,88.13,78.82298362]
[1770501620764,8.99348784,88.161,88.13,78.82298362]
[1770501620965,8.99348784,88.16,88.13,78.82298362]
[1770501621164,8.99348784,88.159,88.13,78.82298362]
[1770501621363,72.79032913,88.179,88.13,78.82298362]
[1770501621563,72.79032913,88.169,88.119,75.0762896]
[1770501621764,72.79032913,88.149,88.101,75.0762896]
[1770501621972,8.98668132,88.148,88.101,75.0762896]
[1770501622172,8.98668132,88.147,88.101,75.0762896]
[1770501622371,8.98668132,88.146,88.101,75.0762896]
[1770501622569,8.98668132,88.145,88.101,75.0762896]
[1770501622770,8.98668132,88.144,88.101,75.0762896]
[1770501622972,8.98668132,88.143,88.101,75.0762896]
[1770501623167,8.98668132,88.142,88.11,3.74669402]
[1770501623374,8.98668132,88.141,88.111,75.0762896]
[1770501623580,8.98668132,88.14,88.111,75.0762896]
[1770501623772,8.98668132,88.139,88.111,75.0762896]
[1770501623973,8.98721169,88.138,88.111,75.0762896]
[1770501624280,72.79032913,88.149,88.111,75.0762896]
[1770501624472,81.77685567,88.148,88.111,75.0762896]
[1770501624673,72.79032913,88.146,88.111,75.0762896]
[1770501624982,8.98652654,88.145,88.111,75.0762896]
[1770501625174,8.98652654,88.144,88.111,75.0762896]
[1770501625371,8.98652654,88.143,88.111,75.0762896]
[1770501625571,8.98652654,88.142,88.111,75.0762896]
[1770501625775,8.98652654,88.141,88.111,75.0762896]
[1770501625976,8.98652654,88.14,88.111,75.0762896]
[1770501626176,8.98652654,88.139,88.111,75.0762896]
[1770501626377,72.79032913,88.146,88.111,75.0762896]
[1770501626576,8.94072839,88.145,88.111,75.0762896]
[1770501626777,8.94072839,88.144,88.111,75.0762896]
[1770501626977,8.94072839,88.143,88.111,75.0762896]
[1770501627178,8.94072839,88.142,88.111,75.0762896]
[1770501627380,8.94072839,88.141,88.111,75.0762896]
[1770501627582,8.94072839,88.14,88.111,75.0762896]
[1770501627878,8.94072839,88.139,88.111,75.0762896]
[1770501628082,8.94072839,88.138,88.111,75.0762896]
[1770501628285,72.79032913,88.146,88.111,75.0762896]
[1770501628479,8.94461316,88.145,88.111,75.0762896]
[1770501628680,8.94461316,88.144,88.111,75.0762896]
[1770501628884,8.94461316,88.143,88.111,75.0762896]
[1770501629182,8.94461316,88.142,88.111,75.0762896]
[1770501629382,8.94461316,88.141,88.111,75.0762896]
[1770501629578,8.94461316,88.14,88.111,75.0762896]
[1770501629783,72.79032913,88.146,88.111,75.0762896]
[1770501629984,8.94438803,88.145,88.111,75.0762896]
[1770501630181,8.94438803,88.144,88.111,75.0762896]
[1770501630380,8.94438803,88.143,88.111,75.0762896]
[1770501630578,8.94438803,88.142,88.111,75.0762896]
[1770501630885,8.94438803,88.141,88.111,75.0762896]
[1770501631084,8.94438803,88.14,88.111,75.0762896]
[1770501631385,8.94558399,88.139,88.111,75.0762896]
[1770501631589,8.94558399,88.138,88.111,75.0762896]
[1770501631783,8.94558399,88.137,88.111,75.0762896]
[1770501632086,72.79032913,88.146,88.111,75.0762896]
[1770501632381,8.94558399,88.145,88.111,75.0762896]
[1770501632586,8.94558399,88.144,88.111,75.0762896]
[1770501632784,8.94558399,88.143,88.111,75.0762896]
[1770501632985,8.94558399,88.142,88.111,75.0762896]
[1770501633185,8.94558399,88.141,88.111,75.0762896]
[1770501633386,8.94558399,88.14,88.111,75.0762896]
[1770501633586,8.94558399,88.139,88.111,75.0762896]
[1770501633786,8.94558399,88.138,88.111,75.0762896]
[1770501634088,8.94558399,88.137,88.111,75.0762896]
[1770501634276,72.79032913,88.146,88.111,75.0762896]
[1770501634477,8.94669428,88.145,88.111,75.0762896]
[1770501634680,8.94669428,88.144,88.111,75.0762896]
[1770501634879,8.94669428,88.143,88.111,75.0762896]
[1770501635078,8.94669428,88.142,88.111,75.0762896]
[1770501635285,8.94669428,88.141,88.111,75.0762896]
[1770501635485,8.94669428,88.14,88.111,75.0762896]
[1770501635684,8.94669428,88.139,88.111,75.0762896]
[1770501635885,8.94669428,88.138,88.111,75.0762896]
[1770501636076,8.94669428,88.137,88.111,75.0762896]
[1770501636284,8.94669428,88.136,88.111,75.0762896]
[1770501636488,72.79032913,88.146,88.111,75.0762896]
[1770501636786,8.9487446,88.145,88.111,75.0762896]
[1770501636986,8.9487446,88.144,88.111,75.0762896]
[1770501637288,8.9487446,88.143,88.111,75.0762896]
[1770501637488,8.9487446,88.142,88.111,75.0762896]
[1770501637685,8.9487446,88.141,88.111,75.0762896]
[1770501637986,8.9487446,88.14,88.111,75.0762896]
[1770501638193,8.9487446,88.139,88.111,75.0762896]
[1770501638385,8.9487446,88.138,88.111,75.0762896]
[1770501638585,8.9487446,88.137,88.111,75.0762896]
[1770501638785,8.9487446,88.136,88.111,75.0762896]
[1770501638988,8.9487446,88.135,88.111,75.0762896]
[1770501639188,72.79032913,88.146,88.111,75.0762896]
[1770501639392,8.94896604,88.145,88.111,75.0762896]
[1770501639590,8.94896604,88.144,88.111,75.0762896]
[1770501639789,8.94896604,88.143,88.111,75.0762896]
[1770501639990,8.94896604,88.142,88.111,75.0762896]
[1770501640291,8.94896604,88.141,88.111,75.0762896]
[1770501640493,8.94896604,88.14,88.111,75.0762896]
[1770501640790,8.94896604,88.139,88.111,75.0762896]
[1770501640991,8.94896604,88.138,88.111,75.0762896]
[1770501641192,8.94896604,88.137,88.111,75.0762896]
[1770501641394,8.94896604,88.136,88.111,75.0762896]
[1770501641691,8.94896604,88.135,88.111,75.0762896]
[1770501641894,75.91260397,88.157,88.111,75.0762896]
[1770501642087,8.95319323,88.156,88.111,75.0762896]
[1770501642283,8.95319323,88.155,88.111,75.0762896]
[1770501642487,8.95319323,88.154,88.111,75.0762896]
[1770501642690,8.95319323,88.153,88.111,75.0762896]
[1770501642887,8.95319323,88.152,88.111,75.0762896]
[1770501643093,8.95319323,88.151,88.111,75.0762896]
[1770501643393,8.95319323,88.15,88.111,75.0762896]
[1770501643587,8.95319323,88.149,88.111,75.0762896]
[1770501643796,8.95319323,88.148,88.111,75.0762896]
[1770501644090,8.95319323,88.147,88.111,75.0762896]
[1770501644295,8.95319323,88.146,88.111,75.0762896]
[1770501644497,75.91260397,88.153,88.111,75.0762896]
[1770501644498,8.95319323,88.145,88.111,75.0762896]
[1770501644797,8.95319323,88.144,88.111,75.0762896]
[1770501644987,8.95319323,88.143,88.111,75.0762896]
[1770501645188,75.91260397,88.153,88.111,75.0762896]
[1770501645396,75.91260397,88.151,88.111,75.0762896]
[1770501645596,8.96365278,88.15,88.111,75.0762896]
[1770501645792,8.96365278,88.149,88.111,75.0762896]
[1770501645993,8.96365278,88.148,88.111,75.0762896]
[1770501646194,8.96365278,88.147,88.111,75.0762896]
[1770501646393,8.96365278,88.146,88.111,75.0762896]
[1770501646693,8.96365278,88.145,88.111,75.0762896]
[1770501646895,8.96365278,88.144,88.111,75.0762896]
[1770501647197,8.96365278,88.143,88.111,75.0762896]
[1770501647399,8.96365278,88.142,88.111,75.0762896]
[1770501647588,8.96365278,88.141,88.111,75.0762896]
[1770501647789,8.96365278,88.14,88.111,75.0762896]
[1770501647994,8.96365278,88.139,88.111,75.0762896]
[1770501648200,8.96365278,88.138,88.111,75.0762896]
[1770501648399,75.91260397,88.151,88.111,75.0762896]
[1770501648698,8.96948102,88.15,88.111,75.0762896]
[1770501648898,8.96948102,88.149,88.111,75.0762896]
[1770501649092,8.96948102,88.148,88.111,75.0762896]
[1770501649292,8.96948102,88.147,88.111,75.0762896]
[1770501649491,8.96948102,88.146,88.111,75.0762896]
[1770501649699,8.96948102,88.145,88.111,75.0762896]
[1770501649898,8.96948102,88.144,88.111,75.0762896]
[1770501650196,8.96948102,88.143,88.111,75.0762896]
[1770501650395,8.96948102,88.142,88.111,75.0762896]
[1770501650591,8.96948102,88.141,88.121,74.53408641]
[1770501650798,75.91260397,88.164,88.121,74.53408641]
[1770501651399,75.91260397,88.159,88.121,74.53408641]
[1770501651900,86.23783087,88.159,88.121,74.53408641]
[1770501652702,86.12910397,88.153,88.121,74.53408641]
[1770501654604,86.12910397,88.153,88.11,78.27956449]
[1770501656502,86.12910397,88.153,88.11,74.53408641]
[1770501662714,84.83729552,88.152,88.11,74.53408641]
[1770501662914,75.91260397,88.15,88.11,74.53408641]
[1770501663114,84.83729552,88.149,88.11,74.53408641]
[1770501663313,8.92469155,88.148,88.11,74.53408641]
[1770501663613,8.92469155,88.147,88.11,74.53408641]
[1770501663814,8.92469155,88.146,88.11,74.53408641]
[1770501664015,8.92469155,88.145,88.11,74.53408641]
[1770501664216,8.92469155,88.144,88.11,74.53408641]
[1770501664411,8.92469155,88.143,88.11,74.53408641]
[1770501664616,8.92469155,88.142,88.11,74.53408641]
[1770501664915,8.92469155,88.141,88.11,74.53408641]
[1770501665115,75.91260397,88.148,88.11,74.53408641]
[1770501665116,8.92469155,88.14,88.11,74.53408641]
[1770501665317,8.92469155,88.139,88.11,74.53408641]
[1770501665519,8.92469155,88.138,88.11,74.53408641]
[1770501665714,8.92469155,88.137,88.11,74.53408641]
[1770501665918,8.92469155,88.136,88.11,74.53408641]
[1770501666219,8.93101596,88.135,88.11,74.53408641]
[1770501666418,8.93101596,88.134,88.11,74.53408641]
[1770501666717,75.91260397,88.148,88.11,74.53408641]
[1770501666917,8.93337082,88.147,88.11,74.53408641]
[1770501667220,8.93337082,88.146,88.11,74.53408641]
[1770501667419,8.93337082,88.145,88.11,74.53408641]
[1770501667615,8.93337082,88.144,88.11,74.53408641]
[1770501667812,8.93337082,88.143,88.11,74.53408641]
[1770501668017,8.93337082,88.142,88.11,74.53408641]
[1770501668317,8.93337082,88.141,88.11,74.53408641]
[1770501668518,8.93337082,88.14,88.11,74.53408641]
[1770501668717,8.93337082,88.139,88.11,74.53408641]
[1770501668920,8.93337082,88.138,88.11,74.53408641]
[1770501669215,8.93337082,88.137,88.11,74.53408641]
[1770501669422,8.93337082,88.136,88.11,74.53408641]
[1770501669620,8.93337082,88.135,88.11,74.53408641]
[1770501669820,8.93337082,88.134,88.11,74.53408641]
[1770501670023,8.93337082,88.133,88.11,74.53408641]
[1770501670324,8.93337082,88.132,88.11,74.53408641]
[1770501670516,8.93337082,88.131,88.11,74.53408641]
[1770501670713,8.93337082,88.13,88.11,74.53408641]
[1770501670925,75.91260397,88.148,88.11,74.53408641]
[1770501671125,8.95358309,88.147,88.11,74.53408641]
[1770501671421,8.95358309,88.146,88.11,74.53408641]
[1770501671622,8.95358309,88.145,88.11,74.53408641]
[1770501671822,8.95358309,88.144,88.11,74.53408641]
[1770501672029,8.95358309,88.143,88.11,74.53408641]
[1770501672228,8.95358309,88.142,88.11,74.53408641]
[1770501672428,8.95358309,88.141,88.11,74.53408641]
[1770501672629,8.95358309,88.14,88.11,74.53408641]
[1770501672832,8.95358309,88.139,88.11,74.53408641]
[1770501673031,8.95358309,88.138,88.11,74.53408641]
[1770501673233,8.95358309,88.137,88.11,74.53408641]
[1770501673530,8.95358309,88.136,88.11,74.53408641]
[1770501673835,8.95358309,88.135,88.11,74.53408641]
[1770501674133,75.91260397,88.148,88.11,74.53408641]
[1770501674334,8.95436921,88.147,88.11,74.53408641]
[1770501674534,8.95436921,88.146,88.11,74.53408641]
[1770501674735,8.95436921,88.145,88.11,74.53408641]
[1770501675034,8.95436921,88.144,88.11,74.53408641]
[1770501675231,8.95436921,88.143,88.11,74.53408641]
[1770501675534,8.95436921,88.142,88.11,74.53408641]
[1770501675736,8.95436921,88.141,88.11,74.53408641]
[1770501676031,8.95436921,88.14,88.11,74.53408641]
[1770501676228,8.95436921,88.139,88.11,74.53408641]
[1770501676426,8.95436921,88.138,88.11,74.53408641]
[1770501676623,8.95436921,88.137,88.11,74.53408641]
[1770501676828,8.95436921,88.136,88.11,74.53408641]
[1770501677025,8.95436921,88.135,88.11,74.53408641]
[1770501677230,8.95436921,88.134,88.11,74.53408641]
[1770501677428,8.95436921,88.133,88.11,74.53408641]
[1770501677628,8.95436921,88.132,88.11,74.53408641]
[1770501677835,75.91260397,88.148,88.11,74.53408641]
[1770501677836,8.95436921,88.131,88.11,74.53408641]
[1770501678035,8.95436921,88.13,88.11,74.53408641]
[1770501678236,75.91260397,88.148,88.11,74.53408641]
[1770501678430,8.95440656,88.147,88.11,74.53408641]
[1770501678637,8.95440656,88.146,88.11,74.53408641]
[1770501678834,8.95440656,88.145,88.11,74.53408641]
[1770501679140,8.95440656,88.144,88.11,74.53408641]
[1770501679335,8.95440656,88.143,88.11,74.53408641]
[1770501679539,8.95440656,88.142,88.11,74.53408641]
[1770501679740,8.95440656,88.141,88.11,74.53408641]
[1770501680039,8.95440656,88.14,88.11,74.53408641]
[1770501680240,8.95440656,88.139,88.11,74.53408641]
[1770501680442,8.95440656,88.138,88.11,74.53408641]
[1770501680640,8.95440656,88.137,88.11,74.53408641]
[1770501680842,8.95440656,88.136,88.11,74.53408641]
[1770501681143,8.95440656,88.135,88.11,74.53408641]
[1770501681443,8.95440656,88.134,88.11,74.53408641]
[1770501681741,8.95440656,88.133,88.11,74.53408641]
[1770501681941,8.95440656,88.132,88.11,74.53408641]
[1770501682142,8.95440656,88.131,88.11,74.53408641]
[1770501682443,8.95440656,88.13,88.11,74.53408641]
[1770501682645,10.2172,88.147,88.11,74.53408641]
[1770501682944,8.95540269,88.146,88.11,74.53408641]
[1770501683237,8.95540269,88.145,88.11,74.53408641]
[1770501683439,8.95540269,88.144,88.11,74.53408641]
[1770501683742,8.95540269,88.143,88.11,74.53408641]
[1770501683940,8.95540269,88.142,88.11,74.53408641]
[1770501684144,8.95540269,88.141,88.11,74.53408641]
[1770501684342,8.95540269,88.14,88.11,74.53408641]
[1770501684543,8.95540269,88.139,88.11,74.53408641]
[1770501684843,8.95540269,88.138,88.11,74.53408641]
[1770501685043,8.95540269,88.137,88.11,74.53408641]
[1770501685243,8.95540269,88.136,88.11,74.53408641]
[1770501685544,8.95540269,88.135,88.11,74.53408641]
[1770501685744,8.95540269,88.134,88.11,74.53408641]
[1770501685945,8.95540269,88.133,88.11,74.53408641]
[1770501686143,8.95540269,88.132,88.11,74.53408641]
[1770501686345,8.95540269,88.131,88.11,74.53408641]
[1770501686545,8.95540269,88.13,88.11,74.53408641]
[1770501686745,8.95540269,88.129,88.11,74.53408641]
[1770501687042,8.95540269,88.128,88.11,74.53408641]
[1770501687240,10.2182,88.139,88.11,74.53408641]
[1770501687445,8.95546921,88.138,88.11,74.53408641]
[1770501687745,8.95546921,88.137,88.11,78.27983158]
[1770501688042,8.95546921,88.136,88.11,74.53408641]
[1770501688234,8.95546921,88.135,88.11,74.53408641]
[1770501688437,8.95546921,88.134,88.11,74.53408641]
[1770501688638,8.95546921,88.133,88.11,74.53408641]
[1770501688838,10.2182,88.139,88.11,74.53408641]
[1770501689041,8.9579912,88.138,88.11,74.53408641]
[1770501689338,8.9579912,88.137,88.11,74.53408641]
[1770501689538,8.9579912,88.136,88.11,74.53408641]
[1770501689742,8.9579912,88.135,88.11,74.53408641]
[1770501690037,8.9579912,88.134,88.11,74.53408641]
[1770501690243,8.9579912,88.133,88.11,74.53408641]
[1770501690441,10.2182,88.139,88.11,74.53408641]
[1770501690644,8.96483698,88.138,88.11,74.53408641]
[1770501690840,8.96483698,88.137,88.11,74.53408641]
[1770501691147,8.96483698,88.136,88.11,74.53408641]
[1770501691346,8.96483698,88.135,88.11,74.53408641]
[1770501691548,8.96483698,88.134,88.11,74.53408641]
[1770501691747,8.96483698,88.133,88.11,74.53408641]
[1770501691947,10.2182,88.139,88.11,74.53408641]
[1770501692149,8.96506993,88.138,88.11,74.53408641]
[1770501692354,8.96506993,88.137,88.11,74.53408641]
[1770501692554,8.96506993,88.136,88.11,74.53408641]
[1770501692754,8.96506993,88.135,88.11,74.53408641]
[1770501692954,8.96506993,88.134,88.11,74.53408641]
[1770501693253,8.96506993,88.133,88.11,74.53408641]
[1770501693453,10.2182,88.139,88.11,74.53408641]
[1770501693647,8.96494023,88.138,88.11,74.53408641]
[1770501693846,10.2182,88.139,88.11,74.53408641]
[1770501693847,8.96494023,88.137,88.11,74.53408641]
[1770501694052,8.96494023,88.136,88.11,74.53408641]
[1770501694245,10.2182,88.139,88.11,74.53408641]
[1770501694246,8.96494023,88.135,88.11,74.53408641]
[1770501694441,8.96364978,88.134,88.11,36.49568641]
[1770501694649,8.96364978,88.133,88.11,36.49568641]
[1770501694842,8.96364978,88.132,88.11,36.49568641]
[1770501695054,8.96364978,88.131,88.11,36.49568641]
[1770501695251,10.2182,88.139,88.11,36.49568641]
[1770501695450,8.96777192,88.138,88.11,36.49568641]
[1770501695654,8.96777192,88.137,88.11,40.24143158]
[1770501695852,10.217,88.149,88.11,40.24143158]
[1770501696150,8.96891244,88.148,88.11,40.24143158]
[1770501696353,10.2174,88.145,88.11,36.49568641]
[1770501696553,8.96891244,88.144,88.11,19.02598641]
[1770501696756,8.96891244,88.143,88.11,19.02598641]
[1770501696947,8.96891244,88.142,88.11,19.02598641]
[1770501697260,8.96891244,88.141,88.11,19.02598641]
[1770501697459,8.96891244,88.14,88.11,19.02598641]
[1770501697658,8.96891244,88.139,88.11,19.02598641]
[1770501697860,19.18711244,88.138,88.11,19.02598641]
[1770501698158,8.96891244,88.137,88.11,19.02598641]
[1770501698361,8.96891244,88.136,88.11,19.02598641]
[1770501698555,8.96891244,88.135,88.11,19.02598641]
[1770501698859,8.96891244,88.134,88.11,19.02598641]
[1770501699056,8.96891244,88.133,88.11,19.02598641]
[1770501699251,8.96891244,88.132,88.11,19.02598641]
[1770501699452,10.2182,88.138,88.11,19.02598641]
[1770501699652,8.96933373,88.137,88.11,19.02598641]
[1770501699959,8.96933373,88.136,88.11,19.02598641]
[1770501700158,8.96933373,88.135,88.11,19.02598641]
[1770501700360,8.96933373,88.134,88.11,19.02598641]
[1770501700659,8.96933373,88.133,88.11,19.02598641]
[1770501700959,8.96933373,88.132,88.11,19.02598641]
[1770501701158,72.95303795,88.147,88.11,19.02598641]
[1770501701359,8.96730781,88.146,88.11,19.02598641]
[1770501701658,8.96730781,88.145,88.11,19.02598641]
[1770501701858,8.96730781,88.144,88.11,19.02598641]
[1770501702158,8.96730781,88.143,88.11,19.02598641]
[1770501702360,8.96730781,88.142,88.11,19.02598641]
[1770501702660,8.96730781,88.141,88.11,19.02598641]
[1770501703161,8.96730781,88.14,88.11,19.02598641]
[1770501703353,8.96730781,88.139,88.11,19.02598641]
[1770501703556,8.96730781,88.138,88.11,19.02598641]
[1770501703851,8.96730781,88.137,88.11,19.02598641]
[1770501704152,8.96730781,88.136,88.11,19.02598641]
[1770501704351,8.96730781,88.135,88.11,19.02598641]
[1770501704548,8.96730781,88.134,88.11,19.02598641]